bitfinex-derivatives/quotes_BNBF0:USTF0_20250309
["timestamp","ask_amount","ask_price","bid_price","bid_amount"]
[1741557515147,0.299,556.21,555.82,0.29781723]
[1741557515348,0.299,556.21,555.81,0.29781723]
[1741557515548,0.299,556.21,555.82,0.29781723]
[1741557515953,0.299,556.21,555.81,0.29781723]
[1741557516151,0.31293979,556.2,555.82,0.29781723]
[1741557516451,0.31293979,556.2,555.83,0.29781723]
[1741557516649,0.31293979,556.2,555.84,0.29781755]
[1741557516848,0.31293979,556.2,555.8,0.35984166]
[1741557517044,1.39810123,556.19,555.8,0.35984166]
[1741557517251,1.39810123,556.19,555.81,0.29782875]
[1741557517645,0.31293979,556.2,555.81,0.29782875]
[1741557518750,1.39836502,556.19,555.8,0.35984166]
[1741557518946,1.39836502,556.19,555.81,0.2978254]
[1741557519147,1.71127949,556.19,555.81,0.2978254]
[1741557519353,1.39836502,556.18,555.81,0.2978254]
[1741557520044,0.31291447,556.19,555.81,0.2978254]
[1741557520248,0.728,556.17,555.81,0.2978254]
[1741557520646,0.728,556.17,555.82,0.29780984]
[1741557520850,0.728,556.17,555.81,0.29780984]
[1741557521051,0.728,556.17,555.82,0.29780984]
[1741557521247,0.728,556.17,555.83,0.29780984]
[1741557521448,0.728,556.17,555.81,0.29780984]
[1741557521653,0.728,556.17,555.82,0.29780984]
[1741557521858,0.728,556.17,555.81,0.29780984]
[1741557522250,1.04093838,556.17,555.81,0.29780984]
[1741557524348,0.299,556.16,555.81,0.29780984]
[1741557529259,0.299,556.16,555.82,0.35982872]
[1741557529457,0.299,556.16,555.83,0.29780984]
[1741557529659,0.299,556.16,555.84,0.35981577]
[1741557529859,0.299,556.16,555.85,0.29780984]
[1741557530159,0.299,556.16,555.86,0.35980282]
[1741557530358,0.299,556.16,555.87,0.29780984]
[1741557536765,0.299,556.16,555.86,0.35980282]
[1741557536964,0.299,556.16,555.87,0.29773693]
[1741557539264,0.299,556.16,555.88,0.29773593]
[1741557539459,0.299,556.16,555.89,0.29773593]
[1741557539663,0.299,556.16,555.87,0.29773593]
[1741557540757,0.299,556.16,555.88,0.29773971]
[1741557540958,0.299,556.16,555.89,0.29773971]
[1741557541164,0.299,556.16,555.87,0.29773971]
[1741557541459,0.299,556.16,555.88,0.29773971]
[1741557541663,0.299,556.16,555.87,0.29773971]
[1741557541963,0.299,556.16,555.88,0.29773971]
[1741557542365,0.299,556.16,555.89,0.29773971]
[1741557542564,0.299,556.16,555.87,0.29773971]
[1741557542763,0.299,556.16,555.88,0.29773971]
[1741557543163,0.299,556.16,555.89,0.29773971]
[1741557543363,0.299,556.16,555.87,0.29773971]
[1741557543563,0.299,556.16,555.86,0.35980282]
[1741557543564,0.299,556.16,555.88,0.29773971]
[1741557543867,0.299,556.16,555.86,0.35980282]
[1741557543868,0.299,556.16,555.89,0.29772891]
[1741557544065,0.299,556.16,555.87,0.29772891]
[1741557544363,0.299,556.16,555.88,0.29772891]
[1741557544563,0.299,556.16,555.87,0.29772891]
[1741557544759,0.299,556.16,555.88,0.29772891]
[1741557544964,0.299,556.16,555.87,0.29772891]
[1741557545164,0.299,556.16,555.88,0.65751879]
[1741557545360,0.299,556.16,555.89,0.35978341]
[1741557545565,0.299,556.16,555.9,0.29772891]
[1741557546263,0.791,556.18,555.9,1.64290878]
[1741557546465,0.791,556.18,555.91,0.29772891]
[1741557546964,0.791,556.18,555.92,0.35976399]
[1741557547466,0.791,556.18,555.93,0.29767581]
[1741557547763,0.791,556.18,555.94,0.35975105]
[1741557548067,0.791,556.18,555.95,0.29767581]
[1741557548266,0.791,556.18,555.95,0.65742039]
[1741557548468,0.791,556.18,555.96,0.29767581]
[1741557550869,0.791,556.18,555.95,0.35974458]
[1741557551064,0.791,556.18,555.96,0.29769644]
[1741557552973,0.791,556.18,555.97,0.35973164]
[1741557553173,0.791,556.18,555.98,0.29769644]
[1741557553372,0.791,556.18,555.99,0.35971869]
[1741557553575,0.791,556.18,556.0,0.29769644]
[1741557553776,0.791,556.18,556.01,0.35970576]
[1741557554074,0.791,556.18,556.02,0.29769644]
[1741557554267,0.791,556.18,556.02,0.65739573]
[1741557554468,0.791,556.18,556.03,0.65738926]
[1741557554670,0.791,556.18,556.04,0.65738279]
[1741557554871,0.791,556.18,556.05,0.65737632]
[1741557555068,0.791,556.18,556.06,0.65736985]
[1741557555373,0.791,556.18,556.07,0.29769644]
[1741557555572,0.791,556.18,556.08,0.29769644]
[1741557555775,0.791,556.18,556.09,0.29769644]
[1741557555971,0.791,556.18,556.1,0.29769644]
[1741557556173,0.791,556.18,556.07,0.29769644]
[1741557556369,0.791,556.18,556.08,0.65735692]
[1741557556569,0.791,556.18,556.09,0.29769644]
[1741557556975,0.791,556.18,556.1,0.29769644]
[1741557557275,0.791,556.18,556.11,0.29769644]
[1741557557470,0.791,556.18,556.09,0.29769644]
[1741557557774,0.791,556.18,556.1,0.29769644]
[1741557557974,0.791,556.18,556.09,0.29769644]
[1741557558176,0.791,556.18,556.1,0.29746624]
[1741557558374,0.791,556.18,556.11,0.29746624]
[1741557558575,0.791,556.18,556.12,0.29746624]
[1741557558774,0.791,556.18,556.13,0.29746624]
[1741557558970,0.791,556.18,556.14,0.29746624]
[1741557559170,0.791,556.18,556.09,0.29746624]
[1741557559370,0.791,556.18,556.1,0.29746624]
[1741557559580,0.791,556.18,556.11,0.29746624]
[1741557559876,0.791,556.18,556.12,0.29746624]
[1741557560074,0.791,556.18,556.08,0.35966048]
[1741557560374,0.791,556.18,556.09,0.29742323]
[1741557560575,0.791,556.18,556.1,0.65707077]
[1741557560776,0.791,556.18,556.11,0.6570643]
[1741557561076,0.791,556.18,556.12,0.65705784]
[1741557561376,0.791,556.18,556.13,0.65705137]
[1741557561575,0.791,556.18,556.14,0.29742323]
[1741557564178,0.791,556.18,556.15,0.35961521]
[1741557564380,0.299,556.29,556.16,0.29742323]
[1741557564580,0.299,556.29,556.17,0.35960227]
[1741557564788,0.299,556.29,556.18,0.29742323]
[1741557565086,0.299,556.29,556.19,0.35958934]
[1741557565286,0.299,556.29,556.2,0.29742323]
[1741557565505,0.299,556.29,556.21,0.35957641]
[1741557565687,0.299,556.29,556.22,0.29747649]
[1741557565986,0.299,556.29,556.23,0.35956348]
[1741557566187,0.299,556.29,556.24,0.29747649]
[1741557566387,0.299,556.29,556.25,0.35955056]
[1741557566588,0.299,556.29,556.26,0.29747649]
[1741557566885,0.299,556.29,556.27,0.35953763]
[1741557567087,0.299,556.29,556.28,0.29747649]
[1741557567288,0.299,556.29,556.28,0.35953117]
[1741557567585,0.299,556.29,556.28,0.65695078]
[1741557568982,0.299,556.29,556.28,0.35953117]
[1741557569187,0.299,556.29,556.28,0.65693013]
[1741557570586,0.783,556.59,556.28,0.65693013]
[1741557570783,0.783,556.59,556.29,0.65692366]
[1741557570988,0.783,556.59,556.3,0.6569172]
[1741557571186,0.783,556.59,556.31,0.65691074]
[1741557571383,0.783,556.59,556.32,0.65690428]
[1741557571685,0.783,556.59,556.33,0.65689781]
[1741557571880,0.783,556.59,556.34,0.65689135]
[1741557572088,0.783,556.59,556.35,0.65688489]
[1741557572288,0.783,556.59,556.36,0.65687843]
[1741557572489,0.783,556.59,556.37,0.65687197]
[1741557572684,0.783,556.59,556.37,0.35947301]
[1741557572881,0.783,556.59,556.38,0.29740431]
[1741557573086,0.783,556.59,556.38,0.65687086]
[1741557573287,0.783,556.59,556.39,0.29740431]
[1741557578093,0.783,556.59,556.38,0.35946655]
[1741557578293,0.783,556.59,556.39,0.29749233]
[1741557579989,0.783,556.59,556.4,0.29749124]
[1741557580195,0.783,556.59,556.39,0.29749124]
[1741557580390,0.783,556.59,556.38,0.35946655]
[1741557580594,0.783,556.59,556.39,0.29750275]
[1741557580797,0.299,556.72,556.38,0.35946655]
[1741557582300,0.31268111,556.71,556.38,0.35946655]
[1741557584000,0.629,556.7,556.38,0.35946655]
[1741557585196,0.31278087,556.69,556.38,0.35946655]
[1741557585497,0.31278087,556.69,555.53,1.34517987]
[1741557585698,0.31278087,556.69,555.55,0.3600036]
[1741557586097,2.8725946,556.68,555.56,0.29756074]
[1741557586296,8.00723582,556.67,555.56,0.29756074]
[1741557586603,3.60166597,556.68,555.56,0.29756074]
[1741557586604,8.00725039,556.66,555.56,0.29756074]
[1741557586803,8.00725039,556.65,555.56,0.29756074]
[1741557587006,8.00725039,556.64,555.56,0.29756074]
[1741557587206,8.00725039,556.63,555.56,0.29756074]
[1741557587405,8.00725039,556.62,555.56,0.29756074]
[1741557587606,8.00725039,556.61,555.56,0.29756074]
[1741557587807,8.00725039,556.6,555.56,0.29756074]
[1741557588000,8.00725039,556.59,555.56,0.29756074]
[1741557588306,11.06983335,556.58,555.56,0.29756074]
[1741557588506,7.46816738,556.57,555.56,0.29756074]
[1741557588705,7.46816738,556.56,555.56,0.29756074]
[1741557588907,7.46816738,556.55,555.56,0.29756074]
[1741557589108,7.46816738,556.54,555.57,0.29776386]
[1741557589310,2.7981601,556.53,555.56,0.29776386]
[1741557589609,4.59530239,556.52,555.57,0.29776386]
[1741557589809,2.87335771,556.51,555.56,0.29776386]
[1741557590009,2.8730287,556.5,555.57,0.29776386]
[1741557590213,2.8730287,556.49,555.58,0.29776386]
[1741557590509,6.47469467,556.48,555.59,0.29776386]
[1741557590708,2.8730287,556.47,555.56,0.29776386]
[1741557590910,2.8730287,556.46,555.58,0.35998416]
[1741557591107,1.07588618,556.45,555.59,0.29776386]
[1741557591312,3.60166597,556.46,555.59,0.29776386]
[1741557591512,1.07581333,556.45,555.6,0.3599712]
[1741557591712,1.38590529,556.45,555.61,0.29776386]
[1741557591911,1.38590529,556.45,555.62,0.35995824]
[1741557592414,1.38590529,556.44,555.63,0.29776386]
[1741557592609,1.38590529,556.44,555.64,0.35994528]
[1741557592810,1.38590529,556.43,555.65,0.29776386]
[1741557593015,1.38590529,556.43,555.66,0.35993233]
[1741557593212,1.38590529,556.43,555.67,0.29776386]
[1741557593409,1.38590529,556.42,555.68,0.35991937]
[1741557593613,1.38590529,556.42,555.69,0.29776386]
[1741557593814,1.38590529,556.42,555.7,0.35990642]
[1741557594014,1.38590529,556.42,555.71,0.29776386]
[1741557594214,0.31286102,556.41,555.72,0.35989347]
[1741557594411,0.31286102,556.41,555.73,0.29776386]
[1741557594614,0.31286102,556.41,555.74,0.35988051]
[1741557594815,0.31286102,556.41,555.75,0.29776386]
[1741557595015,0.31286102,556.41,555.76,0.35986756]
[1741557595214,0.31286102,556.41,555.77,0.29776386]
[1741557595415,0.31286102,556.41,555.78,0.35985461]
[1741557595618,0.31286102,556.41,555.79,0.29776386]
[1741557595816,0.31286102,556.41,555.8,0.35984166]
[1741557596117,0.31286102,556.41,555.81,0.29776386]
[1741557596316,0.31286102,556.41,555.82,0.35982872]
[1741557596517,0.31286102,556.41,555.83,0.29776386]
[1741557596716,0.31286102,556.41,555.84,0.35981577]
[1741557597017,0.299,556.57,555.85,0.29776386]
[1741557597213,0.31278931,556.43,555.86,0.35980282]
[1741557597419,0.31278931,556.43,555.87,0.29776386]
[1741557597617,0.299,556.57,555.88,0.35978988]
[1741557597917,1.38662394,556.56,555.89,0.29776386]
[1741557598117,1.38662394,556.56,555.9,0.35977693]
[1741557598419,1.38662394,556.55,555.91,0.29767512]
[1741557598823,1.38662394,556.55,555.92,0.35976399]
[1741557599018,0.31278931,556.56,555.93,0.29767512]
[1741557599218,0.31278931,556.56,555.94,0.35975105]
[1741557599520,0.31278931,556.56,555.95,0.29767512]
[1741557599717,0.31278931,556.56,555.96,0.35973811]
[1741557599913,0.299,556.57,555.97,0.29767512]
[1741557600112,0.299,556.57,555.98,0.35972516]
[1741557600317,0.299,556.57,555.99,0.29767512]
[1741557600513,0.299,556.57,556.0,0.35971223]
[1741557600717,0.299,556.57,556.01,0.29767512]
[1741557601018,2.87307351,556.56,556.0,0.35971223]
[1741557601321,2.87307351,556.55,556.0,0.35971223]
[1741557601521,1.69935572,556.56,556.0,0.35971223]
[1741557601921,1.38654111,556.55,556.01,0.29770891]
[1741557602116,2.46273029,556.55,556.0,0.35971223]
[1741557602317,1.38654111,556.55,556.01,0.29772847]
[1741557602724,1.38654111,556.54,556.01,0.29772847]
[1741557603124,0.31281461,556.56,556.01,0.29772847]
[1741557603525,1.38689155,556.55,556.01,0.29772847]
[1741557603927,2.20789155,556.54,556.01,0.29772847]
[1741557604420,0.821,556.54,556.01,0.29772847]
[1741557604921,2.46320096,556.53,556.0,0.35971223]
[1741557605226,2.8734719,556.52,556.0,0.35971223]
[1741557605420,1.38674569,556.51,556.0,0.35971223]
[1741557606021,1.38674569,556.51,556.01,0.29771197]
[1741557606427,0.821,556.54,556.01,0.29771197]
[1741557607130,0.3,556.53,556.01,0.29771197]
[1741557607335,1.68670385,556.53,556.01,0.29771197]
[1741557607630,2.87300927,556.52,556.0,0.35971223]
[1741557607824,1.07598548,556.51,556.0,0.35971223]
[1741557608023,2.8730253,556.5,556.0,0.35971223]
[1741557608223,1.38670385,556.52,556.0,0.35971223]
[1741557608224,2.8730253,556.49,556.0,0.35971223]
[1741557608428,4.25979172,556.48,556.0,0.35971223]
[1741557608631,1.07598548,556.47,556.0,0.35971223]
[1741557608832,1.38670385,556.47,556.0,0.35971223]
[1741557609131,3.18588742,556.46,556.0,0.35971223]
[1741557609331,1.07577564,556.45,556.0,0.35971223]
[1741557609532,3.91687832,556.46,556.0,0.35971223]
[1741557609724,6.47659862,556.45,556.0,0.35971223]
[1741557609926,1.07548012,556.44,556.0,0.35971223]
[1741557610130,3.60392587,556.45,556.0,0.35971223]
[1741557610326,1.38670385,556.43,556.0,0.35971223]
[1741557610729,0.31295245,556.46,556.0,0.35971223]
[1741557611334,0.31295245,556.46,556.01,0.29772447]
[1741557612033,0.3,556.53,556.01,0.29772447]
[1741557612831,1.3858438,556.52,556.01,0.29772447]
[1741557613239,1.3858438,556.51,556.01,0.29772447]
[1741557614137,0.31279071,556.52,556.0,0.35971223]
[1741557614138,1.3858438,556.5,556.0,0.35971223]
[1741557614534,1.3858438,556.49,556.0,0.35971223]
[1741557615139,1.38822134,556.48,556.0,0.35971223]
[1741557615335,2.87252928,556.47,556.0,0.35971223]
[1741557615639,2.87252928,556.46,556.0,0.35971223]
[1741557615840,1.07495674,556.45,556.01,0.2977928]
[1741557616140,1.07495674,556.44,556.01,0.2977928]
[1741557616340,1.07495674,556.43,556.0,0.35971223]
[1741557616640,1.3858438,556.42,556.0,0.35971223]
[1741557617039,1.3858438,556.42,556.01,0.2977837]
[1741557617235,1.3858438,556.41,556.01,0.2977837]
[1741557618037,1.3858438,556.4,556.0,0.35971223]
[1741557618441,1.3858438,556.39,555.46,1.34517987]
[1741557618743,1.3858438,556.39,555.48,1.34517987]
[1741557619043,1.3858438,556.38,555.49,0.65785078]
[1741557619241,1.6988047,556.38,555.5,0.360036]
[1741557619440,1.3858438,556.37,555.51,0.2978083]
[1741557619843,1.3858438,556.37,555.53,0.36001656]
[1741557620142,0.3129609,556.38,555.53,0.36001656]
[1741557620143,1.3858438,556.36,555.54,0.2978083]
[1741557620538,0.3129609,556.38,555.54,0.2978083]
[1741557620539,1.3858438,556.35,555.54,0.2978083]
[1741557620938,1.3858438,556.34,555.54,0.2978083]
[1741557621137,1.3858438,556.34,555.55,0.3600036]
[1741557621343,1.69878359,556.34,555.56,0.2978083]
[1741557621544,0.31293979,556.34,555.57,0.35999064]
[1741557621746,0.31293979,556.34,555.58,0.2978083]
[1741557621940,0.31293979,556.34,555.59,0.35997768]
[1741557622145,0.31293979,556.34,555.6,0.2978083]
[1741557622345,0.31293979,556.34,555.61,0.35996472]
[1741557622546,0.31293979,556.34,555.62,0.2978083]
[1741557622747,0.31293979,556.34,555.63,0.35995176]
[1741557622948,0.31293979,556.34,555.64,0.2978083]
[1741557623243,0.669,556.33,555.64,0.2978083]
[1741557623746,0.669,556.33,555.65,0.35993881]
[1741557623946,0.669,556.33,555.66,0.2978083]
[1741557624148,0.31292853,556.32,555.67,0.35992585]
[1741557624346,0.31292853,556.32,555.68,0.2978083]
[1741557624748,0.31292853,556.32,555.69,0.29780979]
[1741557624940,0.31292853,556.32,555.67,0.35992585]
[1741557624941,0.31292853,556.32,555.7,0.29780979]
[1741557625142,0.31292853,556.32,555.68,0.29780979]
[1741557625342,0.31292853,556.32,555.69,0.65772269]
[1741557625647,0.31292853,556.32,555.7,0.29780979]
[1741557626341,0.31292853,556.32,555.7,0.65771621]
[1741557626647,0.31292853,556.32,555.71,0.65770973]
[1741557626847,0.669,556.33,555.72,0.65770326]
[1741557627046,0.669,556.33,555.73,0.35988699]
[1741557627247,0.31289196,556.31,555.74,0.29780979]
[1741557627748,0.31289196,556.31,555.75,0.35987404]
[1741557628047,0.31289196,556.31,555.76,0.29780979]
[1741557628240,0.31289196,556.31,555.77,0.35986109]
[1741557628445,0.31289196,556.31,555.78,0.29780979]
[1741557629242,0.669,556.33,555.78,0.29780979]
[1741557630049,0.669,556.33,555.79,0.35984814]
[1741557630246,0.669,556.33,555.8,0.29773268]
[1741557630548,0.669,556.33,555.81,0.35983519]
[1741557630748,0.669,556.33,555.82,0.29773268]
[1741557630948,0.669,556.33,555.83,0.35982224]
[1741557631144,0.669,556.33,555.84,0.29773268]
[1741557631342,0.669,556.33,555.85,0.3598093]
[1741557631546,0.669,556.33,555.86,0.29773268]
[1741557631847,0.669,556.33,555.87,0.35979635]
[1741557632046,0.669,556.33,555.88,0.2977125]
[1741557632347,0.669,556.33,555.89,0.35978341]
[1741557632549,0.669,556.33,555.9,0.2977125]
[1741557632846,0.669,556.33,555.9,0.65748943]
[1741557633049,0.669,556.33,555.91,0.2977125]
[1741557633650,0.669,556.33,555.9,0.35977693]
[1741557633844,0.669,556.33,555.92,0.29773515]
[1741557634044,0.669,556.33,555.93,0.29773515]
[1741557634349,0.669,556.33,555.94,0.29773515]
[1741557634549,0.669,556.33,555.91,0.29773515]
[1741557634745,0.669,556.33,555.92,0.29773515]
[1741557634952,0.669,556.33,555.93,0.29773515]
[1741557635251,0.669,556.33,555.94,0.29773515]
[1741557635450,0.669,556.33,555.91,0.29773515]
[1741557635647,0.669,556.33,555.92,0.29773515]
[1741557635853,0.669,556.33,555.91,0.29773515]
[1741557636050,0.669,556.33,555.92,0.29773515]
[1741557636250,0.31286523,556.32,555.93,0.29773515]
[1741557636448,0.31286523,556.32,555.94,0.29773515]
[1741557636652,0.669,556.33,555.91,0.29773515]
[1741557636848,0.669,556.33,555.9,0.35977693]
[1741557637052,0.669,556.33,555.91,0.29771004]
[1741557637448,0.669,556.33,555.9,0.35977693]
[1741557637649,0.669,556.33,555.91,0.29770828]
[1741557642757,0.669,556.33,555.9,0.35977693]
[1741557643058,0.669,556.33,555.91,0.29757787]
[1741557643259,0.669,556.33,555.92,0.29757787]
[1741557643459,0.669,556.33,555.9,0.35977693]
[1741557643460,0.669,556.33,555.93,0.29757787]
[1741557643659,0.669,556.33,555.94,0.29757787]
[1741557643861,0.669,556.33,555.95,0.29757787]
[1741557644067,0.669,556.33,555.96,0.29757787]
[1741557644362,0.669,556.33,555.97,0.29757787]
[1741557644662,0.669,556.33,555.98,0.29757787]
[1741557644856,0.669,556.33,555.99,0.65729656]
[1741557645061,0.669,556.33,556.0,0.6572901]
[1741557645262,0.669,556.33,556.01,0.29757787]
[1741557645463,0.669,556.33,556.02,0.35969929]
[1741557645658,0.669,556.33,556.03,0.29757787]
[1741557645962,0.669,556.33,556.04,0.35968635]
[1741557646163,0.669,556.33,556.05,0.29759164]
[1741557646564,0.669,556.33,556.06,0.35967341]
[1741557646760,0.669,556.33,556.07,0.29759164]
[1741557647163,0.669,556.33,556.08,0.35966048]
[1741557647368,0.669,556.33,556.09,0.29759164]
[1741557647564,0.669,556.33,556.1,0.35964754]
[1741557648070,0.669,556.33,556.11,0.29757541]
[1741557649270,0.275,556.43,556.11,0.29757541]
[1741557649671,0.275,556.43,556.12,0.35963461]
[1741557649871,0.275,556.43,556.13,0.29757541]
[1741557650072,0.275,556.43,556.14,0.35962167]
[1741557650370,0.275,556.43,556.15,0.29757541]
[1741557651675,0.275,556.43,556.16,0.29757541]
[1741557651873,0.275,556.43,556.17,0.29757541]
[1741557652173,0.275,556.43,556.18,0.29757541]
[1741557652473,0.275,556.43,556.19,0.29757541]
[1741557652667,0.275,556.43,556.14,0.35962167]
[1741557652668,0.275,556.43,556.2,0.29757541]
[1741557652869,0.275,556.43,556.15,0.29757541]
[1741557653167,0.275,556.43,556.14,0.35962167]
[1741557653168,0.275,556.43,556.16,0.29757541]
[1741557653375,0.275,556.43,556.17,0.29735136]
[1741557653674,0.275,556.43,556.18,0.29735136]
[1741557653973,0.275,556.43,556.19,0.29735136]
[1741557654170,0.275,556.43,556.2,0.29735136]
[1741557654375,0.275,556.43,556.21,0.29735136]
[1741557654575,0.275,556.43,556.22,0.29735136]
[1741557654876,0.275,556.43,556.23,0.29735136]
[1741557655271,0.275,556.43,556.24,0.29735136]
[1741557655475,0.275,556.43,556.25,0.29735136]
[1741557655676,0.275,556.43,556.26,0.29735136]
[1741557655871,0.275,556.43,556.27,0.29735136]
[1741557656077,0.275,556.43,556.28,0.29735136]
[1741557656276,0.275,556.43,556.29,0.29735136]
[1741557656478,0.275,556.43,556.3,0.29735136]
[1741557656777,0.275,556.43,556.31,0.29735136]
[1741557656972,0.275,556.43,556.32,0.29735136]
[1741557657176,0.275,556.43,556.33,0.29735136]
[1741557657370,0.275,556.43,556.34,0.29735136]
[1741557657678,0.275,556.43,556.35,0.29735136]
[1741557657977,0.275,556.43,556.36,0.29735136]
[1741557658983,0.275,556.43,556.37,0.35947301]
[1741557659173,0.275,556.43,556.38,0.29735136]
[1741557659674,0.684,556.57,556.38,0.29735136]
[1741557660077,0.684,556.57,556.39,0.35946009]
[1741557660279,0.684,556.57,556.4,0.29735136]
[1741557660479,0.684,556.57,556.41,0.35944717]
[1741557660780,0.684,556.57,556.42,0.29726794]
[1741557661080,0.684,556.57,556.43,0.35943425]
[1741557661279,0.684,556.57,556.44,0.29726794]
[1741557662738,0.684,556.57,556.45,0.35942133]
[1741557662879,0.684,556.57,556.46,0.29726794]
[1741557663076,0.684,556.57,556.47,0.35940841]
[1741557663278,0.684,556.57,556.48,0.29726794]
[1741557664783,0.684,556.57,556.49,0.35939549]
[1741557664980,0.684,556.57,556.5,0.29726794]
[1741557665483,0.275,556.77,556.5,0.29726794]
[1741557666084,0.275,556.77,556.51,0.35938258]
[1741557666285,0.275,556.77,556.52,0.29726794]
[1741557667189,0.275,556.77,556.53,0.35936966]
[1741557667486,0.275,556.77,556.54,0.2972919]
[1741557667686,0.275,556.77,556.55,0.35935675]
[1741557667888,0.275,556.77,556.56,0.2972919]
[1741557668189,0.275,556.77,556.57,0.35934383]
[1741557668384,0.275,556.77,556.58,0.2972919]
[1741557668885,0.275,556.77,556.57,0.35934383]
[1741557669684,0.275,556.77,556.58,0.29739137]
[1741557673691,0.275,556.77,556.57,0.35934383]
[1741557681697,0.31267127,556.78,556.57,0.35934383]
[1741557687102,0.89,556.87,556.57,0.35934383]
[1741557687302,0.31262633,556.78,556.57,0.35934383]
[1741557687503,0.89,556.87,556.57,0.35934383]
[1741557688504,0.89,556.87,556.58,0.29742299]
[1741557688704,0.89,556.87,556.57,0.35934383]
[1741557688999,0.89,556.87,556.58,0.29740042]
[1741557690801,0.89,556.87,556.59,0.29740729]
[1741557691104,0.89,556.87,556.6,0.29740729]
[1741557691306,0.89,556.87,556.61,0.29740729]
[1741557691505,0.89,556.87,556.62,0.29740729]
[1741557691704,0.89,556.87,556.58,0.29740729]
[1741557691907,0.89,556.87,556.57,0.35934383]
[1741557692111,0.89,556.87,556.58,0.29741122]
[1741557692506,0.89,556.87,556.59,0.29741221]
[1741557692706,0.89,556.87,556.58,0.29741221]
[1741557692901,0.89,556.87,556.57,0.35934383]
[1741557692902,0.89,556.87,556.59,0.29741221]
[1741557693109,0.3125421,556.86,556.58,0.29741221]
[1741557693303,0.3125421,556.86,556.59,0.29741221]
[1741557693504,0.3125421,556.86,556.6,0.29741221]
[1741557693703,0.3125421,556.86,556.61,0.29741221]
[1741557693906,0.3125421,556.86,556.62,0.29741221]
[1741557694106,0.3125421,556.86,556.57,0.35934383]
[1741557694311,0.3125421,556.86,556.58,0.29742704]
[1741557696011,0.89,556.87,556.58,0.29742704]
[1741557696310,0.31253789,556.86,556.58,0.29742704]
[1741557697110,0.31253789,556.86,556.59,0.29742495]
[1741557697305,0.31253789,556.86,556.58,0.29742495]
[1741557697612,0.31253789,556.86,556.57,0.35934383]
[1741557698011,0.31253789,556.86,556.58,0.29742734]
[1741557698710,0.31253789,556.86,556.57,0.35934383]
[1741557698910,0.89,556.87,556.57,0.35934383]
[1741557699111,0.89,556.87,556.58,0.29745357]
[1741557699312,0.3126165,556.85,556.58,0.29745357]
[1741557701411,0.3126165,556.85,556.57,0.35934383]
[1741557701914,0.89,556.87,556.57,0.35934383]
[1741557702411,0.89,556.87,556.19,1.34517987]
[1741557702608,0.89,556.87,556.2,0.65704276]
[1741557702808,0.89,556.87,556.21,0.65703629]
[1741557703007,0.89,556.87,556.22,0.65702983]
[1741557703207,0.31262071,556.86,556.23,0.65702336]
[1741557703412,0.31262071,556.86,556.24,0.29745988]
[1741557704209,0.31262071,556.86,556.25,0.35955056]
[1741557704415,0.31262071,556.86,556.26,0.29745988]
[1741557704617,0.31262071,556.86,556.27,0.35953763]
[1741557704914,0.89,556.87,556.28,0.29745988]
[1741557705108,0.89,556.87,556.29,0.3595247]
[1741557705313,0.89,556.87,556.3,0.29745988]
[1741557705511,0.89,556.87,556.31,0.35951178]
[1741557705708,0.89,556.87,556.32,0.29745988]
[1741557706015,0.89,556.87,556.33,0.35949885]
[1741557706417,0.89,556.87,556.34,0.29745988]
[1741557706623,0.89,556.87,556.35,0.35948593]
[1741557706821,0.89,556.87,556.36,0.29745988]
[1741557707022,0.89,556.87,556.37,0.35947301]
[1741557707321,0.275,556.86,556.37,0.35947301]
[1741557707520,0.275,556.86,556.38,0.2973726]
[1741557707715,0.275,556.86,556.39,0.35946009]
[1741557707914,0.275,556.86,556.4,0.2973726]
[1741557708118,0.275,556.86,556.41,0.35944717]
[1741557708421,0.275,556.86,556.42,0.2973726]
[1741557708818,0.275,556.86,556.41,0.35944717]
[1741557711227,0.275,556.86,556.42,0.29740707]
[1741557711228,0.31261931,556.85,556.42,0.29740707]
[1741557712325,0.275,556.86,556.42,0.29740707]
[1741557714324,0.275,556.86,556.41,0.35944717]
[1741557714325,0.275,556.86,556.43,0.29740019]
[1741557714526,0.275,556.86,556.41,0.35944717]